[Event "Vastgota Open 2022"]
[Site "Skara stadshotell, Jarnvagsgatan 5, Skara, Sweden"]
[Date "2022.10.30"]
[Round "9.3"]
[White "Johnson, Daniel"]
[Black "Cramling, Pia"]
[Result "1/2-1/2"]
[TimeControl "30 minutes + 10 seconds per move from move one."]
[BlackTitle "GM"]
[WhiteFideId "1721283"]
[BlackFideId "1700030"]
[WhiteElo "2155"]
[BlackElo "2421"]

1. d4 {[%clk 00:29:19]} {[%emt 00:01:00]} Nf6 {[%clk 00:29:40]} {[%emt
00:00:41]} 2. c4 {[%clk 00:29:26]} {[%emt 00:00:03]} e6 {[%clk 00:29:35]}
{[%emt 00:00:14]} 3. Nc3 {[%clk 00:29:33]} {[%emt 00:00:03]} Bb4 {[%clk
00:29:43]} {[%emt 00:00:02]} 4. Qc2 {[%clk 00:29:41]} {[%emt 00:00:02]} O-O
{[%clk 00:28:03]} {[%emt 00:01:50]} 5. Nf3 {[%clk 00:29:49]} {[%emt 00:00:03]}
d6 {[%clk 00:27:52]} {[%emt 00:00:22]} 6. g3 {[%clk 00:29:36]} {[%emt
00:00:22]} b6 {[%clk 00:27:44]} {[%emt 00:00:17]} 7. Bg2 {[%clk 00:29:12]}
{[%emt 00:00:34]} Bb7 {[%clk 00:27:53]} {[%emt 00:00:02]} 8. O-O {[%clk
00:29:15]} {[%emt 00:00:07]} Nbd7 {[%clk 00:26:24]} {[%emt 00:01:38]} 9. a3
{[%clk 00:27:55]} {[%emt 00:01:30]} Bxc3 {[%clk 00:26:27]} {[%emt 00:00:07]} 10.
Qxc3 {[%clk 00:28:03]} {[%emt 00:00:03]} Be4 {[%clk 00:25:53]} {[%emt
00:00:44]} 11. Re1 {[%clk 00:26:33]} {[%emt 00:01:39]} c5 {[%clk 00:24:21]}
{[%emt 00:01:43]} 12. b4 {[%clk 00:20:42]} {[%emt 00:06:01]} Rc8 {[%clk
00:23:53]} {[%emt 00:00:37]} 13. Bb2 {[%clk 00:19:50]} {[%emt 00:01:02]} d5
{[%clk 00:19:52]} {[%emt 00:04:11]} 14. dxc5 {[%clk 00:17:57]} {[%emt
00:02:04]} bxc5 {[%clk 00:20:01]} {[%emt 00:00:01]} 15. cxd5 {[%clk 00:16:56]}
{[%emt 00:01:10]} cxb4 {[%clk 00:18:59]} {[%emt 00:01:12]} 16. Qxb4 {[%clk
00:15:55]} {[%emt 00:01:11]} Bxd5 {[%clk 00:19:07]} {[%emt 00:00:02]} 17. Rac1
{[%clk 00:15:22]} {[%emt 00:00:43]} Rb8 {[%clk 00:17:30]} {[%emt 00:01:46]} 18.
Qd4 {[%clk 00:14:39]} {[%emt 00:00:53]} Qb6 {[%clk 00:17:25]} {[%emt 00:00:16]}
19. Qxb6 {[%clk 00:13:25]} {[%emt 00:01:24]} Nxb6 {[%clk 00:17:30]} {[%emt
00:00:05]} 20. Bd4 {[%clk 00:12:07]} {[%emt 00:01:28]} Rbc8 {[%clk 00:17:19]}
{[%emt 00:00:21]} 21. Ne5 {[%clk 00:11:08]} {[%emt 00:01:09]} Bxg2 {[%clk
00:14:27]} {[%emt 00:03:02]} 22. Kxg2 {[%clk 00:11:08]} {[%emt 00:00:10]} Rfe8
{[%clk 00:14:19]} {[%emt 00:00:17]} 23. Rxc8 {[%clk 00:07:30]} {[%emt
00:03:49]} Rxc8 {[%clk 00:14:11]} {[%emt 00:00:17]} 24. Rb1 {[%clk 00:07:30]}
{[%emt 00:00:10]} Nfd5 {[%clk 00:13:26]} {[%emt 00:00:55]} 25. Bxb6 {[%clk
00:04:42]} {[%emt 00:02:59]} Nxb6 {[%clk 00:13:20]} {[%emt 00:00:15]} 26. a4
{[%clk 00:03:56]} {[%emt 00:00:56]} Nxa4 {[%clk 00:11:47]} {[%emt 00:01:42]} 27.
Nc6 {[%clk 00:01:08]} {[%emt 00:02:59]} Kf8 {[%clk 00:10:44]} {[%emt 00:01:12]}
28. Nxa7 {[%clk 00:01:13]} {[%emt 00:00:06]} Rc2 {[%clk 00:09:17]} {[%emt
00:01:33]} 29. e3 {[%clk 00:00:51]} {[%emt 00:00:32]} Nb2 {[%clk 00:08:41]}
{[%emt 00:00:48]} 30. Nc6 {[%clk 00:00:29]} {[%emt 00:00:34]} Rxc6 {[%clk
00:08:30]} {[%emt 00:00:21]} 1/2-1/2

[Event "Vastgota Open 2022"]
[Site "Skara stadshotell, Jarnvagsgatan 5, Skara, Sweden"]
[Date "2022.10.30"]
[Round "9.5"]
[White "Madebrink, Lars"]
[Black "Nilsson, Patrik"]
[Result "1-0"]
[TimeControl "30 minutes + 10 seconds per move from move one."]
[WhiteFideId "1701347"]
[BlackFideId "1708171"]
[WhiteElo "2094"]
[BlackElo "2085"]

1. d4 {[%clk 00:30:17]} {[%emt 00:00:02]} f5 {[%clk 00:30:18]} {[%emt
00:00:03]} 2. Nf3 {[%clk 00:30:20]} {[%emt 00:00:06]} Nf6 {[%clk 00:30:24]}
{[%emt 00:00:04]} 3. g3 {[%clk 00:30:27]} {[%emt 00:00:02]} g6 {[%clk
00:30:31]} {[%emt 00:00:04]} 4. Bg2 {[%clk 00:30:32]} {[%emt 00:00:05]} Bg7
{[%clk 00:30:38]} {[%emt 00:00:05]} 5. b3 {[%clk 00:30:37]} {[%emt 00:00:03]}
O-O {[%clk 00:30:39]} {[%emt 00:00:09]} 6. Bb2 {[%clk 00:30:45]} {[%emt
00:00:02]} d6 {[%clk 00:30:36]} {[%emt 00:00:13]} 7. O-O {[%clk 00:30:50]}
{[%emt 00:00:05]} Ne4 {[%clk 00:30:17]} {[%emt 00:00:29]} 8. Nbd2 {[%clk
00:30:49]} {[%emt 00:00:11]} Nc6 {[%clk 00:30:17]} {[%emt 00:00:12]} 9. e3
{[%clk 00:30:07]} {[%emt 00:00:50]} e5 {[%clk 00:28:56]} {[%emt 00:01:32]} 10.
dxe5 {[%clk 00:27:25]} {[%emt 00:02:51]} Nxd2 {[%clk 00:28:48]} {[%emt
00:00:18]} 11. Qxd2 {[%clk 00:26:13]} {[%emt 00:01:22]} dxe5 {[%clk 00:28:09]}
{[%emt 00:00:49]} 12. Qe2 {[%clk 00:25:34]} {[%emt 00:00:49]} Qe7 {[%clk
00:25:18]} {[%emt 00:03:02]} 13. Rad1 {[%clk 00:22:55]} {[%emt 00:02:48]} e4
{[%clk 00:24:40]} {[%emt 00:00:48]} 14. Nd4 {[%clk 00:22:49]} {[%emt 00:00:16]}
Ne5 {[%clk 00:24:45]} {[%emt 00:00:05]} 15. Ba1 {[%clk 00:21:23]} {[%emt
00:01:36]} a6 {[%clk 00:23:04]} {[%emt 00:01:52]} 16. c4 {[%clk 00:20:34]}
{[%emt 00:00:56]} c5 {[%clk 00:22:46]} {[%emt 00:00:30]} 17. Nc2 {[%clk
00:20:37]} {[%emt 00:00:06]} Be6 {[%clk 00:22:55]} {[%emt 00:00:03]} 18. Rd2
{[%clk 00:19:52]} {[%emt 00:00:55]} Rfd8 {[%clk 00:19:29]} {[%emt 00:03:35]} 19.
Rfd1 {[%clk 00:19:34]} {[%emt 00:00:28]} Kf7 {[%clk 00:19:32]} {[%emt
00:00:07]} 20. Ne1 {[%clk 00:19:18]} {[%emt 00:00:26]} Ke8 {[%clk 00:19:25]}
{[%emt 00:00:17]} 21. Bxe5 {[%clk 00:16:24]} {[%emt 00:03:03]} Bxe5 {[%clk
00:19:26]} {[%emt 00:00:11]} 22. f3 {[%clk 00:16:33]} {[%emt 00:00:01]} exf3
{[%clk 00:18:47]} {[%emt 00:00:49]} 23. Qxf3 {[%clk 00:16:31]} {[%emt
00:00:12]} Bc3 {[%clk 00:18:00]} {[%emt 00:00:57]} 24. Rxd8+ {[%clk 00:15:35]}
{[%emt 00:01:05]} Rxd8 {[%clk 00:18:08]} {[%emt 00:00:03]} 25. Nc2 {[%clk
00:15:41]} {[%emt 00:00:04]} b5 {[%clk 00:11:14]} {[%emt 00:07:04]} 26. Qc6+
{[%clk 00:11:40]} {[%emt 00:04:09]} Kf7 {[%clk 00:11:14]} {[%emt 00:00:11]} 27.
Rxd8 {[%clk 00:11:12]} {[%emt 00:00:38]} Qxd8 {[%clk 00:11:22]} {[%emt
00:00:02]} 28. Bd5 {[%clk 00:11:21]} {[%emt 00:00:02]} Qe7 {[%clk 00:07:26]}
{[%emt 00:04:07]} 29. cxb5 {[%clk 00:11:16]} {[%emt 00:00:15]} axb5 {[%clk
00:07:14]} {[%emt 00:00:22]} 30. Bxe6+ {[%clk 00:11:01]} {[%emt 00:00:24]} Qxe6
{[%clk 00:07:19]} {[%emt 00:00:06]} 31. Qxc5 {[%clk 00:11:08]} {[%emt
00:00:03]} b4 {[%clk 00:06:47]} {[%emt 00:00:42]} 32. Kf2 {[%clk 00:09:14]}
{[%emt 00:02:03]} Qe4 {[%clk 00:06:12]} {[%emt 00:00:46]} 33. Qc4+ {[%clk
00:09:16]} {[%emt 00:00:09]} Qxc4 {[%clk 00:04:59]} {[%emt 00:01:23]} 34. bxc4
{[%clk 00:09:24]} {[%emt 00:00:01]} g5 {[%clk 00:03:49]} {[%emt 00:01:20]} 35.
Ke2 {[%clk 00:09:22]} {[%emt 00:00:13]} h5 {[%clk 00:03:24]} {[%emt 00:00:36]}
36. Kd3 {[%clk 00:09:10]} {[%emt 00:00:21]} Be5 {[%clk 00:03:32]} {[%emt
00:00:03]} 37. Nxb4 {[%clk 00:08:52]} {[%emt 00:00:27]} g4 {[%clk 00:03:30]}
{[%emt 00:00:12]} 38. Nd5 {[%clk 00:08:23]} {[%emt 00:00:39]} h4 {[%clk
00:03:39]} {[%emt 00:00:02]} 39. Nf4 {[%clk 00:08:30]} {[%emt 00:00:03]} h3
{[%clk 00:03:25]} {[%emt 00:00:24]} 40. c5 {[%clk 00:08:35]} {[%emt 00:00:04]}
Bb2 {[%clk 00:02:56]} {[%emt 00:00:39]} 41. a4 {[%clk 00:06:58]} {[%emt
00:01:48]} Ke7 {[%clk 00:02:50]} {[%emt 00:00:15]} 42. Kc4 {[%clk 00:06:48]}
{[%emt 00:00:19]} Kd7 {[%clk 00:02:38]} {[%emt 00:00:23]} 43. Kd5 {[%clk
00:06:45]} {[%emt 00:00:14]} Bc1 {[%clk 00:02:43]} {[%emt 00:00:05]} 44. c6+
{[%clk 00:06:40]} {[%emt 00:00:14]} Kc8 {[%clk 00:02:45]} {[%emt 00:00:09]} 45.
Ke6 {[%clk 00:06:17]} {[%emt 00:00:32]} Bxe3 {[%clk 00:01:50]} {[%emt
00:01:05]} 46. Kxf5 {[%clk 00:05:30]} {[%emt 00:00:57]} Bg1 {[%clk 00:01:31]}
{[%emt 00:00:29]} 47. Kxg4 {[%clk 00:05:32]} {[%emt 00:00:08]} Bxh2 {[%clk
00:01:39]} {[%emt 00:00:05]} 48. Kxh3 {[%clk 00:05:30]} {[%emt 00:00:09]} Bxg3
{[%clk 00:01:42]} {[%emt 00:00:08]} 49. Kxg3 {[%clk 00:05:38]} {[%emt
00:00:02]} Kc7 {[%clk 00:01:51]} {[%emt 00:00:01]} 50. Nd5+ {[%clk 00:05:36]}
{[%emt 00:00:11]} Kxc6 {[%clk 00:01:59]} {[%emt 00:00:03]} 51. Nc3 {[%clk
00:05:45]} Kd5 {[%emt 00:00:09]} 1-0

[Event "Vastgota Open 2022"]
[Site "Skara stadshotell, Jarnvagsgatan 5, Skara, Sweden"]
[Date "2022.10.30"]
[Round "9.6"]
[White "Bengtsson, Siv"]
[Black "Thyberg, Andre"]
[Result "0-1"]
[TimeControl "30 minutes + 10 seconds per move from move one."]
[WhiteFideId "1701673"]
[BlackFideId "1764764"]
[WhiteElo "1952"]
[BlackElo "1632"]

1. e4 {[%clk 00:30:19]} e5 {[%clk 00:30:14]} {[%emt 00:00:06]} 2. Nf3 {[%clk
00:30:20]} {[%emt 00:00:09]} Nf6 {[%clk 00:30:13]} {[%emt 00:00:12]} 3. d4
{[%clk 00:30:26]} {[%emt 00:00:04]} Nxe4 {[%clk 00:30:09]} {[%emt 00:00:14]} 4.
Nxe5 {[%clk 00:30:26]} {[%emt 00:00:09]} d5 {[%clk 00:29:59]} {[%emt 00:00:20]}
5. Bd3 {[%clk 00:30:24]} {[%emt 00:00:12]} Nd7 {[%clk 00:30:00]} {[%emt
00:00:10]} 6. Nxd7 {[%clk 00:29:26]} {[%emt 00:01:06]} Bxd7 {[%clk 00:30:03]}
{[%emt 00:00:08]} 7. O-O {[%clk 00:29:20]} {[%emt 00:00:16]} Bd6 {[%clk
00:30:00]} {[%emt 00:00:12]} 8. c4 {[%clk 00:26:27]} {[%emt 00:03:04]} c6
{[%clk 00:30:04]} {[%emt 00:00:06]} 9. Nc3 {[%clk 00:25:57]} {[%emt 00:00:39]}
Nxc3 {[%clk 00:29:20]} {[%emt 00:00:56]} 10. bxc3 {[%clk 00:25:51]} {[%emt
00:00:16]} O-O {[%clk 00:27:35]} {[%emt 00:01:55]} 11. cxd5 {[%clk 00:23:23]}
{[%emt 00:02:37]} Qh4 {[%clk 00:27:29]} {[%emt 00:00:17]} 12. g3 {[%clk
00:22:37]} {[%emt 00:00:55]} Qh3 {[%clk 00:27:28]} {[%emt 00:00:10]} 13. Rb1
{[%clk 00:19:28]} {[%emt 00:03:19]} Rfe8 {[%clk 00:26:07]} {[%emt 00:01:31]} 14.
Be2 {[%clk 00:17:35]} {[%emt 00:02:03]} Re4 {[%clk 00:23:53]} {[%emt 00:02:25]}
15. f4 {[%clk 00:16:09]} {[%emt 00:01:35]} c5 {[%clk 00:20:21]} {[%emt
00:03:43]} 16. Bf3 {[%clk 00:14:11]} {[%emt 00:02:08]} Re7 {[%clk 00:16:09]}
{[%emt 00:04:22]} 17. Rxb7 {[%clk 00:11:13]} {[%emt 00:03:08]} Rae8 {[%clk
00:15:30]} {[%emt 00:00:48]} 18. Bd2 {[%clk 00:09:09]} {[%emt 00:02:14]} cxd4
{[%clk 00:14:53]} {[%emt 00:00:47]} 19. cxd4 {[%clk 00:09:16]} {[%emt
00:00:03]} h5 {[%clk 00:11:36]} {[%emt 00:03:27]} 20. Bg2 {[%clk 00:04:20]}
{[%emt 00:05:05]} Qf5 {[%clk 00:11:37]} {[%emt 00:00:10]} 21. Re1 {[%clk
00:04:20]} {[%emt 00:00:10]} Qd3 {[%clk 00:09:51]} {[%emt 00:01:56]} 22. Rxe7
{[%clk 00:03:36]} {[%emt 00:00:54]} Rxe7 {[%clk 00:09:10]} {[%emt 00:00:52]} 23.
Qc1 {[%clk 00:01:59]} {[%emt 00:01:47]} Qxd4+ {[%clk 00:08:27]} {[%emt
00:00:53]} 24. Kh1 {[%clk 00:02:07]} Bc5 {[%clk 00:07:16]} {[%emt 00:01:21]} 25.
Bc3 {[%clk 00:01:20]} {[%emt 00:00:57]} Qf2 {[%clk 00:06:51]} {[%emt 00:00:36]}
26. Rb2 {[%clk 00:01:29]} {[%emt 00:00:01]} Re2 {[%clk 00:06:05]} {[%emt
00:00:56]} 27. Rxe2 {[%clk 00:01:17]} {[%emt 00:00:22]} Qxe2 {[%clk 00:06:14]}
{[%emt 00:00:01]} 28. Qe1 {[%clk 00:00:56]} {[%emt 00:00:31]} Qxa2 {[%clk
00:06:04]} {[%emt 00:00:19]} 29. h3 {[%clk 00:01:05]} {[%emt 00:00:01]} Bf2
{[%clk 00:05:13]} {[%emt 00:01:02]} 30. Qe5 {[%clk 00:01:13]} {[%emt 00:00:02]}
Qb1+ {[%clk 00:05:14]} {[%emt 00:00:08]} 31. Be1 {[%clk 00:01:03]} {[%emt
00:00:20]} Qxe1+ {[%clk 00:05:19]} {[%emt 00:00:06]} 32. Qxe1 {[%clk 00:01:10]}
{[%emt 00:00:02]} Bxe1 {[%clk 00:05:27]} {[%emt 00:00:02]} 0-1

[Event "Vastgota Open 2022"]
[Site "Skara stadshotell, Jarnvagsgatan 5, Skara, Sweden"]
[Date "2022.10.30"]
[Round "9.7"]
[White "Ronneland, Daniel"]
[Black "Johansson, Stefan"]
[Result "1-0"]
[TimeControl "30 minutes + 10 seconds per move from move one."]
[WhiteFideId "1702130"]
[BlackFideId "1733745"]
[WhiteElo "2206"]
[BlackElo "1946"]

1. e4 {[%clk 00:30:16]} {[%emt 00:00:03]} d5 {[%clk 00:30:14]} {[%emt
00:00:07]} 2. exd5 {[%clk 00:30:02]} {[%emt 00:00:24]} Qxd5 {[%clk 00:30:21]}
{[%emt 00:00:03]} 3. Nc3 {[%clk 00:30:04]} {[%emt 00:00:07]} Qd6 {[%clk
00:30:25]} {[%emt 00:00:07]} 4. d4 {[%clk 00:29:57]} {[%emt 00:00:16]} Nf6
{[%clk 00:30:32]} {[%emt 00:00:03]} 5. Bg5 {[%clk 00:25:12]} {[%emt 00:04:54]}
a6 {[%clk 00:28:25]} {[%emt 00:02:18]} 6. g3 {[%clk 00:24:34]} {[%emt
00:00:47]} Nc6 {[%clk 00:25:09]} {[%emt 00:03:26]} 7. Nf3 {[%clk 00:21:50]}
{[%emt 00:02:54]} Bg4 {[%clk 00:23:39]} {[%emt 00:01:40]} 8. Bg2 {[%clk
00:21:48]} {[%emt 00:00:12]} Bxf3 {[%clk 00:20:42]} {[%emt 00:03:07]} 9. Qxf3
{[%clk 00:18:35]} {[%emt 00:03:23]} h6 {[%clk 00:15:44]} {[%emt 00:05:09]} 10.
Bxf6 {[%clk 00:17:14]} {[%emt 00:01:30]} gxf6 {[%clk 00:15:29]} {[%emt
00:00:26]} 11. O-O-O {[%clk 00:15:51]} {[%emt 00:01:32]} O-O-O {[%clk
00:12:33]} {[%emt 00:03:06]} 12. Na4 {[%clk 00:15:29]} {[%emt 00:00:32]} Qb4
{[%clk 00:08:56]} {[%emt 00:03:48]} 13. Nc5 {[%clk 00:13:25]} {[%emt 00:02:13]}
Rxd4 {[%clk 00:07:40]} {[%emt 00:01:27]} 14. Rxd4 {[%clk 00:13:08]} {[%emt
00:00:26]} Qxd4 {[%clk 00:06:33]} {[%emt 00:01:18]} 15. Nxb7 {[%clk 00:12:41]}
{[%emt 00:00:37]} Ne5 {[%clk 00:04:41]} {[%emt 00:02:01]} 16. Qe2 {[%clk
00:08:37]} {[%emt 00:04:14]} Qb6 {[%clk 00:02:03]} {[%emt 00:02:48]} 17. Rd1
{[%clk 00:07:54]} {[%emt 00:00:54]} Bg7 {[%clk 00:01:43]} {[%emt 00:00:30]} 18.
Qd2 {[%clk 00:07:13]} {[%emt 00:00:49]} c6 {[%clk 00:01:28]} {[%emt 00:00:26]}
19. Na5 {[%clk 00:06:46]} {[%emt 00:00:37]} f5 {[%clk 00:01:29]} {[%emt
00:00:09]} 20. f4 {[%clk 00:06:09]} {[%emt 00:00:46]} h5 {[%clk 00:01:04]}
{[%emt 00:00:35]} 21. b3 {[%clk 00:03:34]} {[%emt 00:02:45]} Qc5 {[%clk
00:00:48]} {[%emt 00:00:27]} 22. Kb1 {[%clk 00:03:15]} {[%emt 00:00:29]} Bh6
{[%clk 00:00:16]} {[%emt 00:00:42]} 23. Nxc6 {[%clk 00:02:15]} {[%emt
00:01:10]} Nxc6 {[%clk 00:00:23]} {[%emt 00:00:02]} 24. Qd7+ {[%clk 00:02:21]}
{[%emt 00:00:03]} Kb8 {[%clk 00:00:32]} 25. Bxc6 {[%clk 00:02:20]} {[%emt
00:00:13]} Qb6 {[%clk 00:00:41]} {[%emt 00:00:02]} 26. Bf3 {[%clk 00:01:57]}
{[%emt 00:00:33]} Rc8 {[%clk 00:00:47]} {[%emt 00:00:04]} 27. Qxf5 {[%clk
00:01:51]} {[%emt 00:00:16]} Bg7 {[%clk 00:00:55]} {[%emt 00:00:01]} 28. Qd5
{[%clk 00:01:26]} {[%emt 00:00:31]} Qa7 {[%clk 00:00:57]} {[%emt 00:00:13]} 29.
Qd7 {[%clk 00:01:00]} {[%emt 00:00:32]} Qxd7 {[%clk 00:01:04]} {[%emt
00:00:07]} 30. Rxd7 {[%clk 00:01:09]} {[%emt 00:00:02]} h4 {[%clk 00:01:13]} 31.
Rb7+ {[%emt 00:00:28]} 1-0

[Event "Vastgota Open 2022"]
[Site "Skara stadshotell, Jarnvagsgatan 5, Skara, Sweden"]
[Date "2022.10.30"]
[Round "9.8"]
[White "Blauhut, Holger"]
[Black "Kleimark, Anders"]
[Result "1-0"]
[TimeControl "30 minutes + 10 seconds per move from move one."]
[WhiteTitle "CM"]
[WhiteFideId "24665177"]
[BlackFideId "1709968"]
[WhiteElo "2037"]
[BlackElo "2048"]

1. e4 {[%clk 00:30:17]} {[%emt 00:00:02]} c5 {[%clk 00:30:12]} {[%emt
00:00:07]} 2. Nf3 {[%clk 00:30:22]} {[%emt 00:00:06]} d6 {[%clk 00:30:08]}
{[%emt 00:00:13]} 3. Bb5+ {[%clk 00:30:22]} {[%emt 00:00:11]} Nd7 {[%clk
00:30:15]} {[%emt 00:00:03]} 4. d4 {[%clk 00:30:23]} {[%emt 00:00:10]} Ngf6
{[%clk 00:30:18]} {[%emt 00:00:06]} 5. Nc3 {[%clk 00:30:13]} {[%emt 00:00:21]}
cxd4 {[%clk 00:30:21]} {[%emt 00:00:06]} 6. Qxd4 {[%clk 00:30:15]} {[%emt
00:00:08]} a6 {[%clk 00:29:31]} {[%emt 00:00:59]} 7. Be2 {[%clk 00:30:21]}
{[%emt 00:00:05]} g6 {[%clk 00:28:48]} {[%emt 00:00:52]} 8. O-O {[%clk
00:30:14]} {[%emt 00:00:18]} Bg7 {[%clk 00:28:50]} {[%emt 00:00:07]} 9. Rd1
{[%clk 00:30:03]} {[%emt 00:00:22]} O-O {[%clk 00:27:40]} {[%emt 00:01:20]} 10.
e5 {[%clk 00:29:59]} {[%emt 00:00:14]} dxe5 {[%clk 00:26:09]} {[%emt 00:01:42]}
11. Nxe5 {[%clk 00:29:47]} {[%emt 00:00:22]} Qa5 {[%clk 00:25:20]} {[%emt
00:00:58]} 12. Nc4 {[%clk 00:29:23]} {[%emt 00:00:34]} Qd8 {[%clk 00:21:36]}
{[%emt 00:03:55]} 13. Bf3 {[%clk 00:26:09]} {[%emt 00:03:24]} Rb8 {[%clk
00:21:30]} {[%emt 00:00:16]} 14. Qh4 {[%clk 00:21:29]} {[%emt 00:04:49]} b5
{[%clk 00:20:47]} {[%emt 00:00:53]} 15. Bf4 {[%clk 00:21:09]} {[%emt 00:00:31]}
bxc4 {[%clk 00:19:58]} {[%emt 00:00:59]} 16. Bxb8 {[%clk 00:21:14]} {[%emt
00:00:05]} Qb6 {[%clk 00:19:53]} {[%emt 00:00:13]} 17. Bg3 {[%clk 00:20:07]}
{[%emt 00:01:19]} Qxb2 {[%clk 00:19:40]} {[%emt 00:00:23]} 18. Qxc4 {[%clk
00:19:47]} {[%emt 00:00:30]} Nb6 {[%clk 00:14:49]} {[%emt 00:05:01]} 19. Qb3
{[%clk 00:18:46]} {[%emt 00:01:11]} Qxb3 {[%clk 00:14:52]} {[%emt 00:00:06]} 20.
cxb3 {[%clk 00:18:53]} {[%emt 00:00:04]} Ng4 {[%clk 00:13:48]} {[%emt
00:01:14]} 21. Rac1 {[%clk 00:18:12]} {[%emt 00:00:50]} Bh6 {[%clk 00:13:17]}
{[%emt 00:00:41]} 22. Rc2 {[%clk 00:17:59]} {[%emt 00:00:24]} Bf5 {[%clk
00:13:15]} {[%emt 00:00:12]} 23. Re2 {[%clk 00:16:25]} {[%emt 00:01:43]} Rc8
{[%clk 00:12:30]} {[%emt 00:00:56]} 24. Ne4 {[%clk 00:14:51]} {[%emt 00:01:44]}
a5 {[%clk 00:11:10]} {[%emt 00:01:30]} 25. h3 {[%clk 00:14:26]} {[%emt
00:00:35]} Bxe4 {[%clk 00:10:46]} {[%emt 00:00:35]} 26. Rxe4 {[%clk 00:12:17]}
{[%emt 00:02:18]} Nf6 {[%clk 00:10:44]} {[%emt 00:00:12]} 27. Rxe7 {[%clk
00:12:23]} {[%emt 00:00:05]} Bf8 {[%clk 00:10:10]} {[%emt 00:00:43]} 28. Rc7
{[%clk 00:11:07]} {[%emt 00:01:26]} Re8 {[%clk 00:08:42]} {[%emt 00:01:38]} 29.
Rc6 {[%clk 00:11:11]} {[%emt 00:00:06]} Nbd7 {[%clk 00:08:35]} {[%emt
00:00:16]} 30. Bd6 {[%clk 00:11:05]} {[%emt 00:00:17]} Bg7 {[%clk 00:08:24]}
{[%emt 00:00:21]} 31. Bc7 {[%clk 00:10:34]} {[%emt 00:00:42]} a4 {[%clk
00:08:13]} {[%emt 00:00:21]} 32. bxa4 {[%clk 00:10:28]} {[%emt 00:00:16]} h5
{[%clk 00:07:47]} {[%emt 00:00:35]} 33. a5 {[%clk 00:09:31]} {[%emt 00:01:08]}
Ne5 {[%clk 00:07:16]} {[%emt 00:00:40]} 34. Bxe5 {[%clk 00:09:04]} {[%emt
00:00:37]} Rxe5 {[%clk 00:07:24]} {[%emt 00:00:02]} 35. a6 {[%clk 00:06:56]}
{[%emt 00:02:19]} Ra5 {[%clk 00:07:28]} {[%emt 00:00:06]} 36. Rdd6 {[%clk
00:06:48]} {[%emt 00:00:18]} Nh7 {[%clk 00:07:26]} {[%emt 00:00:11]} 37. Bd5
{[%clk 00:06:30]} {[%emt 00:00:29]} Ng5 {[%clk 00:07:02]} {[%emt 00:00:33]} 38.
h4 {[%clk 00:05:44]} {[%emt 00:00:55]} Nh7 {[%clk 00:06:37]} {[%emt 00:00:35]}
39. Bc4 {[%clk 00:04:04]} {[%emt 00:01:51]} Bf8 {[%clk 00:05:44]} {[%emt
00:01:03]} 40. Rd7 {[%clk 00:04:00]} {[%emt 00:00:14]} Ra4 {[%clk 00:04:57]}
{[%emt 00:00:58]} 41. Bxf7+ {[%clk 00:03:24]} {[%emt 00:00:46]} Kh8 {[%clk
00:05:03]} {[%emt 00:00:03]} 42. Bxg6 {[%clk 00:03:10]} {[%emt 00:00:24]} Bg7
{[%clk 00:04:46]} {[%emt 00:00:27]} 43. Bxh7 {[%clk 00:02:24]} {[%emt
00:00:57]} Kxh7 {[%clk 00:04:52]} {[%emt 00:00:03]} 44. Rcc7 {[%clk 00:02:26]}
{[%emt 00:00:08]} Rxa2 {[%clk 00:04:39]} {[%emt 00:00:24]} 45. Rxg7+ {[%clk
00:02:31]} {[%emt 00:00:04]} Kh8 {[%clk 00:04:47]} {[%emt 00:00:02]} 46. Rge7
{[%clk 00:02:36]} {[%emt 00:00:05]} 1-0